lending/lending_fUSD_20260312
["ID","MTS","AMOUNT","RATE_DAILY","PERIOD"]
[408286265,1773352241672,-2000.0,0.00017769,2]
[408286266,1773352241681,-800.0,0.00017808,2]
[408286267,1773352241690,-5708.39256945,0.000179,2]
[408286268,1773352241700,-736.0,0.00017978,2]
[408286269,1773352241709,-2000.0,0.00018071,2]
[408286270,1773352241719,-8710.76662319,0.000183,2]
[408286271,1773352241730,-17900.96318107,0.000183,2]
[408286272,1773352241739,-2500.0,0.00018317,2]
[408286273,1773352241750,-1000.0,0.00018619,2]
[408286274,1773352241761,-823.0,0.00018721,2]
[408286275,1773352241770,-250.0,0.00018763,2]
[408286276,1773352241780,-2000.0,0.00018865,2]
[408286277,1773352241791,-112218.6413007,0.00018901,2]
[408286278,1773352241801,-4100.28,0.00018901,2]
[408286279,1773352241811,-2277.0,0.00018964,2]
[408286280,1773352241824,-350.0,0.00019,2]
[408286281,1773352241836,-3000.0,0.00019178,2]
[408286282,1773352241845,-3010.28485316,0.00019178,2]
[408286283,1773352241856,-1560.62274314,0.00019343,2]
[408286284,1773352241869,-5666.0,0.0002,7]
[408286285,1773352241880,-1152.0,0.00020505,2]
[408286286,1773352241889,-3673.64,0.00020732,2]
[408286287,1773352241899,-507.0,0.00020938,5]
[408286288,1773352241909,-607.27,0.00021164,2]
[408286289,1773352241918,-174.32,0.00021438,2]
[408286290,1773352241927,-4200.0,0.000219,7]
[408286291,1773352241937,-8710.76662319,0.0002225,2]
[408286292,1773352241947,-17900.96318107,0.0002225,2]
[408286293,1773352241957,-1613.0,0.00022459,2]
[408286294,1773352241967,-500.0,0.00022687,2]
[408286295,1773352241978,-500.0,0.00022687,2]
[408286296,1773352241987,-500.0,0.00022687,2]
[408286297,1773352241997,-500.0,0.00022687,2]
[408286298,1773352242006,-500.0,0.00022687,2]
[408286299,1773352242016,-500.0,0.00022687,2]
[408286300,1773352242027,-500.0,0.00022687,2]
[408286301,1773352242037,-500.0,0.00022687,2]
[408286302,1773352242047,-325.12055306,0.00022687,2]
[408286303,1773352242057,-500.0,0.00022687,2]
[408286304,1773352242067,-500.0,0.00022687,2]
[408286305,1773352242076,-500.0,0.00022687,2]
[408286306,1773352242086,-500.0,0.00022687,2]
[408286307,1773352242095,-500.0,0.00022687,2]
[408286308,1773352242106,-500.0,0.00022687,2]
[408286309,1773352242115,-500.0,0.00022687,2]
[408286310,1773352242125,-500.0,0.00022687,2]
[408286311,1773352242135,-500.0,0.00022687,2]
[408286312,1773352242144,-500.0,0.00022687,2]
[408286313,1773352242153,-501.47802842,0.00022687,2]
[408286314,1773352242163,-500.0,0.00022742,2]
[408286315,1773352242173,-500.0,0.00022797,2]
[408286316,1773352242182,-500.0,0.00022852,2]
[408286317,1773352242199,-500.0,0.00022907,2]
[408286318,1773352242212,-500.0,0.00022962,2]
[408286319,1773352242221,-500.0,0.00023017,2]
[408286320,1773352242232,-200.0,0.00023022,2]
[408286321,1773352242242,-500.0,0.00023072,2]
[408286322,1773352242252,-500.0,0.00023127,2]
[408286323,1773352242262,-500.0,0.00023182,2]
[408286324,1773352242271,-1438.88,0.00023203,2]
[408286325,1773352242281,-2624.03,0.00023207,2]
[408286326,1773352242290,-500.0,0.00023237,2]
[408286327,1773352242300,-220.02,0.000237,14]
[408286328,1773352242309,-1560.62274314,0.00024436,2]
[408286329,1773352242320,-612.0,0.00024598,2]
[408286330,1773352242329,-1000.0,0.00024658,2]
[408286331,1773352242338,-507.0,0.00024875,9]
[408286332,1773352242349,-173969.78562235,0.000249,2]
[408286334,1773352242445,-458.87313864,0.000249,2]
[408286335,1773352242462,-430.99278857,0.000249,2]
[408286336,1773352242473,-5531.30993896,0.000249,2]
[408286337,1773352242485,-3802.09856249,0.000249,2]
[408286338,1773352242497,-77109.97802499,0.000249,2]
[408286339,1773352242508,-15075.1752736,0.00026123,2]
[408286340,1773352242518,-8710.76662319,0.000262,2]
[408286341,1773352242527,-17900.96318107,0.000262,2]
[408286342,1773352242536,-10050.1168491,0.00027387,2]
[408286343,1773352242550,-10000.0,0.00027397,120]
[408286344,1773352242560,-9155.55,0.00027397,10]
[408286345,1773352242571,-7629.63,0.00027397,10]
[408286346,1773352242581,-660.07,0.000284,14]
[408286347,1773352242590,-166.54,0.00028493,2]
[408286348,1773352242600,-507.0,0.00028812,12]
[408286349,1773352242610,-1560.62274314,0.00029529,2]
[408286350,1773352242620,-620.0,0.00029826,2]
[408286351,1773352242630,-1043.0,0.00029826,2]
[408286352,1773352242639,-1343.0,0.00029826,2]
[408286353,1773352242649,-3751.0,0.00029826,2]
[408286354,1773352242659,-163.50554828,0.00029992,2]
[408286355,1773352242668,-15075.1752736,0.00030085,2]
[408286356,1773352242677,-1822.0,0.00031533,5]
[408286357,1773352242688,-507.0,0.0003275,16]
[408286358,1773352242697,-620.0,0.00032826,2]
[408286359,1773352242706,-1043.0,0.00032826,2]
[408286360,1773352242715,-1343.0,0.00032826,2]
[408286361,1773352242724,-3751.0,0.00032826,2]
[408286362,1773352242733,-8321.4,0.000341,14]
[408286363,1773352242742,-1560.62274314,0.00034621,2]
[408286364,1773352242751,-32942.6924,0.0003468,2]
[408286365,1773352242760,-1000.0,0.0003468,2]
[408286366,1773352242770,-1438.88,0.00034899,2]
[408286367,1773352242780,-550.06,0.000357,30]
[408286368,1773352242790,-620.0,0.00035826,2]
[408286369,1773352242800,-1043.0,0.00035826,2]
[408286370,1773352242811,-1343.0,0.00035826,2]
[408286371,1773352242829,-3751.0,0.00035826,2]
[408286372,1773352242839,-507.0,0.00036688,20]
[408286373,1773352242848,-222.07,0.00037438,14]
[408286374,1773352242857,-16965.0,0.000376,2]
[408286375,1773352242868,-2099.21,0.00038034,30]
[408286376,1773352242878,-5533.0,0.000382,3]
[408286377,1773352242887,-1999.0,0.00038356,120]
[408286378,1773352242896,-1999.0,0.00038767,120]
[408286379,1773352242906,-5533.0,0.000388,5]
[408286380,1773352242916,-2275.0,0.00038825,5]
[408286381,1773352242925,-620.0,0.00038826,2]
[408286382,1773352242935,-1043.0,0.00038826,2]
[408286383,1773352242944,-1343.0,0.00038826,2]
[408286385,1773352242953,-1999.0,0.00039178,120]
[408286387,1773352242962,-656.948,0.00039181,54]
[408286389,1773352242972,-1999.0,0.00039589,120]
[408286390,1773352242981,-8321.4,0.000396,14]
[408286391,1773352242990,-1560.62274314,0.00039714,2]
[408286392,1773352242999,-1999.0,0.0004,120]
[408286393,1773352243008,-1098.42,0.0004041,120]
[408286394,1773352243017,-507.0,0.00040625,23]
[408286395,1773352243028,-289.57951382,0.00041096,2]
[408286396,1773352243037,-6347.0,0.00041764,2]
[408286397,1773352243047,-620.0,0.00041826,2]
[408286398,1773352243056,-1039.0,0.00041826,2]
[408286400,1773352243065,-1343.0,0.00041826,2]
[408286401,1773352243074,-1574.42,0.00042546,120]
[408286402,1773352243084,-8321.4,0.000427,14]
[408286403,1773352243093,-702.0,0.00043,30]
[408286404,1773352243102,-200.0,0.00043068,120]
[408286405,1773352243111,-200.0,0.00043068,120]
[408286406,1773352243121,-200.0,0.00043068,120]
[408286407,1773352243131,-350.0,0.00043068,120]
[408286408,1773352243141,-1160.0,0.00043201,120]
[408286409,1773352243151,-484.0,0.00043201,120]
[408286410,1773352243160,-1444.0,0.00043562,120]
[408286411,1773352243169,-507.0,0.00044562,27]
[408286412,1773352243178,-1560.62274314,0.00044807,28]
[408286413,1773352243188,-440.424,0.00044826,2]
[408286414,1773352243197,-1343.0,0.00044826,2]
[408286415,1773352243207,-158.74767773,0.00044951,97]
[408286416,1773352243216,-2564.42382694,0.00046027,14]
[408286417,1773352243225,-201.42053061,0.00046027,2]
[408286418,1773352243234,-1438.88,0.00046595,120]
[408286419,1773352243243,-500.89524145,0.00046635,10]
[408286420,1773352243253,-210.26061864,0.00046635,10]
[408286421,1773352243263,-168.16660661,0.00046635,10]
[408286422,1773352243273,-502.44343779,0.00046635,10]
[408286423,1773352243283,-514.09272205,0.00046635,10]
[408286424,1773352243292,-500.0,0.00046635,10]
[408286425,1773352243302,-500.0,0.00046635,10]
[408286426,1773352243312,-8321.4,0.000472,14]
[408286427,1773352243321,-500.0,0.00047762,120]
[408286428,1773352243330,-500.0,0.00047762,120]
[408286429,1773352243339,-500.0,0.00047762,120]
[408286430,1773352243350,-500.0,0.00047762,120]
[408286431,1773352243360,-500.0,0.00047762,120]
[408286432,1773352243370,-500.0,0.00047762,120]
[408286433,1773352243380,-500.0,0.00047762,120]
[408286434,1773352243391,-500.0,0.00047762,120]
[408286435,1773352243400,-500.0,0.00047762,120]
[408286436,1773352243410,-500.0,0.00047762,120]
[408286437,1773352243420,-500.0,0.00047762,120]
[408286438,1773352243429,-500.0,0.00047762,120]
[408286439,1773352243438,-500.0,0.00047762,120]
[408286440,1773352243447,-500.0,0.00047762,120]
[408286441,1773352243456,-500.0,0.00047762,120]
[408286442,1773352243475,-500.0,0.00047762,120]
[408286443,1773352243484,-500.0,0.00047762,120]
[408286444,1773352243493,-500.0,0.00047762,120]
[408286445,1773352243502,-500.0,0.00047762,120]
[408286446,1773352243511,-500.0,0.00047762,120]
[408286447,1773352243521,-500.0,0.00047762,120]
[408286448,1773352243530,-500.0,0.00047762,120]
[408286449,1773352243539,-500.0,0.00047762,120]
[408286450,1773352243548,-500.0,0.00047762,120]
[408286451,1773352243557,-500.0,0.00047762,120]
[408286452,1773352243567,-500.0,0.00047762,120]
[408286453,1773352243577,-500.0,0.00047762,120]
[408286454,1773352243587,-500.0,0.00047762,120]
[408286455,1773352243596,-500.0,0.00047762,120]
[408286456,1773352243606,-500.0,0.00047762,120]
[408286457,1773352243615,-500.0,0.00047762,120]
[408286458,1773352243624,-500.0,0.00047762,120]
[408286459,1773352243634,-500.0,0.00047762,120]
[408286460,1773352243644,-500.0,0.00047762,120]
[408286461,1773352243653,-500.0,0.00047762,120]
[408286462,1773352243664,-500.0,0.00047762,120]
[408286463,1773352243674,-500.0,0.00047762,120]
[408286464,1773352243683,-500.0,0.00047762,120]
[408286465,1773352243692,-500.0,0.00047762,120]
[408286466,1773352243702,-611.0,0.00047762,120]
[408286467,1773352243711,-500.0,0.00047762,120]
[408286468,1773352243720,-500.0,0.00047762,120]
[408286469,1773352243729,-500.0,0.00047762,120]
[408286470,1773352243738,-500.0,0.00047762,120]
[408286471,1773352243748,-500.0,0.00047762,120]
[408286472,1773352243758,-516.0,0.00047762,120]
[408286473,1773352243774,-500.0,0.00047762,120]
[408286474,1773352243784,-500.0,0.00047762,120]
[408286475,1773352243797,-500.0,0.00047762,120]
[408286476,1773352243809,-500.0,0.00047762,120]
[408286477,1773352243822,-500.0,0.00047762,120]
[408286478,1773352243836,-500.0,0.00047762,120]
[408286479,1773352243847,-500.0,0.00047762,120]
[408286480,1773352243858,-500.0,0.00047762,120]
[408286481,1773352243869,-500.0,0.00047762,120]
[408286482,1773352243880,-500.0,0.00047762,120]
[408286483,1773352243891,-500.0,0.00047762,120]
[408286484,1773352243902,-500.0,0.00047762,120]
[408286485,1773352243911,-500.0,0.00047762,120]
[408286486,1773352243921,-500.0,0.00047762,120]
[408286487,1773352243932,-500.0,0.00047762,120]
[408286488,1773352243941,-500.0,0.00047762,120]
[408286489,1773352243952,-500.0,0.00047762,120]
[408286490,1773352243962,-500.0,0.00047762,120]
[408286491,1773352243972,-993.0,0.00047762,120]
[408286492,1773352243982,-500.0,0.00047762,120]
[408286493,1773352243992,-500.0,0.00047762,120]
[408286494,1773352244003,-500.0,0.00047762,120]
[408286495,1773352244013,-500.0,0.00047762,120]
[408286496,1773352244023,-500.0,0.00047762,120]
[408286497,1773352244033,-500.0,0.00047762,120]
[408286498,1773352244043,-500.0,0.00047762,120]
[408286499,1773352244053,-500.0,0.00047762,120]
[408286500,1773352244063,-500.0,0.00047762,120]
[408286501,1773352244073,-500.0,0.00047762,120]
[408286502,1773352244084,-500.0,0.00047762,120]
[408286503,1773352244094,-500.0,0.00047762,120]
[408286504,1773352244105,-500.0,0.00047762,120]
[408286505,1773352244114,-500.0,0.00047762,120]
[408286506,1773352244125,-500.0,0.00047762,120]
[408286507,1773352244135,-889.0,0.00047762,120]
[408286508,1773352244145,-500.0,0.00047762,120]
[408286509,1773352244157,-500.0,0.00047762,120]
[408286510,1773352244167,-500.0,0.00047762,120]
[408286511,1773352244177,-500.0,0.00047762,120]
[408286512,1773352244187,-500.0,0.00047762,120]
[408286513,1773352244197,-500.0,0.00047762,120]
[408286514,1773352244207,-500.0,0.00047762,120]
[408286515,1773352244217,-500.0,0.00047762,120]
[408286516,1773352244227,-500.0,0.00047762,120]
[408286517,1773352244236,-500.0,0.00047762,120]
[408286518,1773352244246,-500.0,0.00047762,120]
[408286519,1773352244256,-500.0,0.00047762,120]
[408286520,1773352244267,-500.0,0.00047762,120]
[408286521,1773352244277,-500.0,0.00047762,120]
[408286522,1773352244288,-500.0,0.00047762,120]
[408286523,1773352244298,-500.0,0.00047762,120]
[408286524,1773352244309,-500.0,0.00047762,120]
[408286525,1773352244319,-500.0,0.00047762,120]
[408286526,1773352244330,-500.0,0.00047762,120]
[408286527,1773352244340,-603.0,0.00047762,120]
[408286528,1773352244350,-500.0,0.00047762,120]
[408286529,1773352244360,-500.0,0.00047762,120]
[408286530,1773352244370,-500.0,0.00047762,120]
[408286531,1773352244380,-500.0,0.00047762,120]
[408286532,1773352244390,-500.0,0.00047762,120]
[408286533,1773352244400,-500.0,0.00047762,120]
[408286534,1773352244410,-500.0,0.00047762,120]
[408286535,1773352244420,-500.0,0.00047762,120]
[408286536,1773352244430,-500.0,0.00047762,120]
[408286537,1773352244441,-500.0,0.00047762,120]
[408286538,1773352244452,-500.0,0.00047762,120]
[408286539,1773352244462,-500.0,0.00047762,120]
[408286540,1773352244473,-500.0,0.00047762,120]
[408286541,1773352244483,-500.0,0.00047762,120]
[408286542,1773352244493,-500.0,0.00047762,120]
[408286543,1773352244504,-500.0,0.00047762,120]
[408286544,1773352244515,-500.0,0.00047762,120]
[408286545,1773352244525,-500.0,0.00047762,120]
[408286546,1773352244536,-500.0,0.00047762,120]
[408286547,1773352244546,-500.0,0.00047762,120]
[408286548,1773352244557,-500.0,0.00047762,120]
[408286549,1773352244566,-500.0,0.00047762,120]
[408286550,1773352244577,-500.0,0.00047762,120]
[408286551,1773352244587,-500.0,0.00047762,120]
[408286552,1773352244597,-500.0,0.00047762,120]
[408286553,1773352244609,-500.0,0.00047762,120]
[408286554,1773352244619,-500.0,0.00047762,120]
[408286555,1773352244629,-500.0,0.00047762,120]
[408286556,1773352244639,-500.0,0.00047762,120]
[408286557,1773352244649,-500.0,0.00047762,120]
[408286558,1773352244660,-500.0,0.00047762,120]
[408286559,1773352244670,-500.0,0.00047762,120]
[408286560,1773352244680,-500.0,0.00047762,120]
[408286561,1773352244690,-500.0,0.00047762,120]
[408286562,1773352244700,-500.0,0.00047762,120]
[408286563,1773352244710,-500.0,0.00047762,120]
[408286564,1773352244722,-500.0,0.00047762,120]
[408286565,1773352244733,-500.0,0.00047762,120]
[408286566,1773352244744,-500.0,0.00047762,120]
[408286567,1773352244755,-500.0,0.00047762,120]
[408286568,1773352244765,-500.0,0.00047762,120]
[408286569,1773352244776,-500.0,0.00047762,120]
[408286570,1773352244788,-500.0,0.00047762,120]
[408286571,1773352244798,-500.0,0.00047762,120]
[408286572,1773352244809,-500.0,0.00047762,120]
[408286573,1773352244819,-500.0,0.00047762,120]
[408286574,1773352244833,-500.0,0.00047762,120]
[408286575,1773352244845,-500.0,0.00047762,120]
[408286576,1773352244857,-500.0,0.00047762,120]
[408286577,1773352244869,-500.0,0.00047762,120]
[408286578,1773352244881,-500.0,0.00047762,120]
[408286579,1773352244891,-500.0,0.00047762,120]
[408286580,1773352244904,-500.0,0.00047762,120]
[408286581,1773352244915,-500.0,0.00047762,120]
[408286582,1773352244925,-500.0,0.00047762,120]
[408286583,1773352244936,-500.0,0.00047762,120]
[408286584,1773352244947,-500.0,0.00047762,120]
[408286585,1773352244959,-500.0,0.00047762,120]
[408286586,1773352244971,-500.0,0.00047762,120]
[408286587,1773352244983,-500.0,0.00047762,120]
[408286588,1773352244995,-500.0,0.00047762,120]
[408286589,1773352245006,-500.0,0.00047762,120]
[408286590,1773352245018,-500.0,0.00047762,120]
[408286591,1773352245028,-500.0,0.00047762,120]
[408286592,1773352245038,-500.0,0.00047762,120]
[408286593,1773352245052,-500.0,0.00047762,120]
[408286594,1773352245062,-500.0,0.00047762,120]
[408286595,1773352245072,-500.0,0.00047762,120]
[408286596,1773352245082,-500.0,0.00047762,120]
[408286597,1773352245093,-500.0,0.00047762,120]
[408286598,1773352245103,-500.0,0.00047762,120]
[408286599,1773352245113,-500.0,0.00047762,120]
[408286600,1773352245122,-500.0,0.00047762,120]
[408286601,1773352245133,-500.0,0.00047762,120]
[408286602,1773352245144,-500.0,0.00047762,120]
[408286603,1773352245154,-500.0,0.00047762,120]
[408286604,1773352245166,-500.0,0.00047762,120]
[408286605,1773352245178,-500.0,0.00047762,120]
[408286606,1773352245190,-500.0,0.00047762,120]
[408286607,1773352245200,-500.0,0.00047762,120]
[408286608,1773352245210,-500.0,0.00047762,120]
[408286609,1773352245219,-500.0,0.00047762,120]
[408286610,1773352245229,-500.0,0.00047762,120]
[408286611,1773352245238,-500.0,0.00047762,120]
[408286612,1773352245249,-500.0,0.00047762,120]
[408286613,1773352245260,-500.0,0.00047762,120]
[408286614,1773352245271,-500.0,0.00047762,120]
[408286615,1773352245281,-500.0,0.00047762,120]
[408286616,1773352245291,-500.0,0.00047762,120]
[408286617,1773352245302,-500.0,0.00047762,120]
[408286618,1773352245312,-500.0,0.00047762,120]
[408286619,1773352245324,-500.0,0.00047762,120]
[408286621,1773352245335,-500.0,0.00047762,120]
[408286623,1773352245346,-500.0,0.00047762,120]
[408286625,1773352245358,-500.0,0.00047762,120]
[408286627,1773352245369,-500.0,0.00047762,120]
[408286629,1773352245380,-500.0,0.00047762,120]
[408286632,1773352245392,-500.0,0.00047762,120]
[408286634,1773352245403,-500.0,0.00047762,120]
[408286636,1773352245413,-593.0,0.00047762,120]
[408286637,1773352245426,-1976.53,0.00047772,7]
[408286638,1773352245439,-202.50075004,0.00047772,2]
[408286640,1773352245450,-277.16,0.00047772,7]
[408286641,1773352245460,-556.06,0.00047782,7]
[408286642,1773352245471,-500.0,0.00047782,120]
[408286643,1773352245482,-161.22521387,0.00047782,120]
[408286644,1773352245492,-164.431,0.00047782,2]
[408286645,1773352245502,-500.0,0.00047782,2]
[408286646,1773352245512,-500.0,0.00047782,2]
[408286647,1773352245522,-500.0,0.00047782,2]
[408286648,1773352245533,-500.0,0.00047782,2]
[408286649,1773352245543,-500.0,0.00047782,2]
[408286650,1773352245553,-500.0,0.00047782,2]
[408286651,1773352245565,-500.0,0.00047782,2]
[408286652,1773352245575,-500.0,0.00047782,2]
[408286653,1773352245584,-500.0,0.00047782,2]
[408286654,1773352245594,-500.0,0.00047782,2]
[408286655,1773352245604,-500.0,0.00047782,2]
[408286656,1773352245614,-500.0,0.00047782,2]
[408286657,1773352245625,-500.0,0.00047782,2]
[408286658,1773352245634,-500.0,0.00047782,2]
[408286659,1773352245644,-15102.0,0.00047782,2]
[408286660,1773352245654,-258.630233,0.00047782,120]
[408286661,1773352245667,-551.733,0.00047826,2]
[408286662,1773352245678,-500.0,0.0004783,10]
[408286663,1773352245688,-6300.0,0.000479,17]
[408286664,1773352245698,-10050.74195115,0.00048,60]
[408286665,1773352245708,-524.79,0.00048348,120]
[408286666,1773352245718,-500.0,0.00048356,60]
[408286667,1773352245728,-500.0,0.00048356,60]
[408286668,1773352245739,-500.0,0.00048356,60]
[408286669,1773352245749,-288.86914503,0.00048493,7]
[408286670,1773352245759,-850.75172187,0.000485,2]
[408286671,1773352245770,-507.0,0.000485,31]
[408286672,1773352245780,-200.0,0.00049,120]
[408286673,1773352245790,-8400.0,0.000492,17]
[408286674,1773352245801,-850.75172187,0.00049244,2]
[408286675,1773352245811,-10500.0,0.000493,17]
[408286676,1773352245821,-500.0,0.00049332,10]
[408286677,1773352245836,-558.0,0.00049332,3]
[408286678,1773352245846,-2100.0,0.000494,18]
[408286679,1773352245856,-500.0,0.00049452,60]
[408286680,1773352245867,-200.0,0.00049452,60]
[408286681,1773352245878,-500.0,0.00049452,60]
[408286682,1773352245888,-500.0,0.00049479,120]
[408286683,1773352245899,-500.0,0.00049479,30]
[408286684,1773352245909,-500.0,0.00049479,30]
[408286685,1773352245919,-500.0,0.00049479,120]
[408286686,1773352245929,-500.0,0.00049479,120]
[408286687,1773352245940,-500.0,0.00049479,120]
[408286688,1773352245950,-500.0,0.00049479,120]
[408286689,1773352245960,-210.09795179,0.00049479,120]
[408286690,1773352245970,-500.0,0.00049479,120]
[408286691,1773352245980,-500.0,0.00049479,120]
[408286692,1773352245991,-500.0,0.00049479,120]
[408286693,1773352246000,-500.0,0.00049479,120]
[408286694,1773352246010,-500.0,0.00049479,120]
[408286695,1773352246020,-500.0,0.00049479,120]
[408286696,1773352246032,-500.0,0.00049479,120]
[408286697,1773352246042,-500.0,0.00049479,120]
[408286698,1773352246052,-282.56,0.00049479,120]
[408286699,1773352246062,-500.0,0.00049479,120]
[408286700,1773352246070,-500.0,0.00049479,120]
[408286701,1773352246077,-500.0,0.00049479,120]
[408286702,1773352246084,-500.0,0.00049479,120]
[408286703,1773352246092,-500.0,0.00049479,120]
[408286704,1773352246100,-500.0,0.00049479,120]
[408286705,1773352246107,-500.0,0.00049479,120]
[408286706,1773352246114,-500.0,0.00049479,120]
[408286707,1773352246123,-1328.69,0.00049479,120]
[408286709,1773352246134,-1328.69,0.00049479,120]
[408286710,1773352246144,-1328.69,0.00049479,120]
[408286711,1773352246154,-1328.69,0.00049479,120]
[408286712,1773352246164,-1328.69,0.00049479,120]
[408286713,1773352246174,-1328.69,0.00049479,120]
[408286714,1773352246184,-1328.69,0.00049479,120]
[408286715,1773352246194,-1328.69,0.00049479,120]
[408286717,1773352246203,-1328.69,0.00049479,120]
[408286718,1773352246213,-1328.69,0.00049479,120]
[408286719,1773352246452,-1328.69,0.00049479,120]
[408286720,1773352246463,-1328.69,0.00049479,120]
[408286721,1773352246473,-1328.69,0.00049479,120]
[408286722,1773352246483,-1328.69,0.00049479,120]
[408286723,1773352246493,-1328.69,0.00049479,120]
[408286724,1773352246503,-1328.69,0.00049479,120]
[408286725,1773352246512,-1328.69,0.00049479,120]
[408286726,1773352246522,-1328.69,0.00049479,120]
[408286727,1773352246531,-1328.69,0.00049479,120]
[408286728,1773352246541,-1328.69,0.00049479,120]
[408286729,1773352246550,-1328.69,0.00049479,120]
[408286730,1773352246560,-1328.69,0.00049479,120]
[408286731,1773352246569,-1328.69,0.00049479,120]
[408286732,1773352246579,-1328.75100679,0.00049479,120]
[408286733,1773352246589,-500.0,0.00049479,120]
[408286734,1773352246599,-500.0,0.00049479,120]
[408286735,1773352246608,-500.0,0.00049479,120]
[408286736,1773352246618,-212.79763085,0.00049479,120]
[408286737,1773352246627,-500.0,0.00049479,120]
[408286738,1773352246637,-500.0,0.00049479,120]
[408286739,1773352246646,-500.0,0.00049479,120]
[408286740,1773352246655,-500.0,0.00049479,120]
[408286741,1773352246665,-500.0,0.00049479,120]
[408286742,1773352246675,-500.0,0.00049479,120]
[408286743,1773352246684,-500.0,0.00049479,30]
[408286744,1773352246694,-500.0,0.00049479,120]
[408286745,1773352246704,-500.0,0.00049479,120]
[408286746,1773352246714,-500.0,0.00049479,120]
[408286747,1773352246724,-500.0,0.00049479,120]
[408286748,1773352246734,-500.0,0.00049479,120]
[408286749,1773352246744,-500.0,0.00049479,120]
[408286750,1773352246754,-500.0,0.00049479,120]
[408286751,1773352246763,-500.0,0.00049479,120]
[408286752,1773352246772,-500.0,0.00049479,120]
[408286753,1773352246782,-500.0,0.00049479,120]
[408286754,1773352246791,-500.0,0.00049479,120]
[408286755,1773352246800,-500.0,0.00049479,120]
[408286756,1773352246811,-500.0,0.00049479,120]
[408286757,1773352246826,-500.0,0.00049479,120]
[408286758,1773352246839,-500.0,0.00049479,30]
[408286759,1773352246849,-500.0,0.00049479,30]
[408286760,1773352246861,-500.0,0.00049479,30]
[408286761,1773352246875,-206.06905847,0.00049479,30]
[408286762,1773352246884,-500.0,0.00049479,120]
[408286763,1773352246896,-500.0,0.00049479,120]
[408286764,1773352246906,-500.0,0.00049479,120]
[408286765,1773352246916,-500.0,0.00049479,120]
[408286766,1773352246925,-500.0,0.00049479,120]
[408286767,1773352246935,-500.0,0.00049479,120]
[408286768,1773352246944,-500.0,0.00049479,120]
[408286769,1773352246954,-500.0,0.00049479,120]
[408286770,1773352246964,-500.0,0.00049479,120]
[408286771,1773352246973,-474.4,0.00049479,120]
[408286772,1773352246982,-500.0,0.00049479,120]
[408286773,1773352246992,-500.0,0.00049479,120]
[408286774,1773352247001,-500.0,0.00049479,120]
[408286775,1773352247010,-500.0,0.00049479,120]
[408286776,1773352247020,-500.0,0.00049479,120]
[408286777,1773352247030,-500.0,0.00049479,120]
[408286778,1773352247040,-500.0,0.00049479,120]
[408286779,1773352247049,-500.0,0.00049479,120]
[408286780,1773352247059,-500.0,0.00049479,120]
[408286781,1773352247070,-529.2489564,0.00049479,120]